Cogmind - Beta 13 @@@ ROGUE MODE // 2024.04.15 @ 15:34:46 Player: Korywon Result: Destroyed by G-47 Trooper with Particle Gun Performance ------------- Evolutions (2) 1000 Regions Visited (4) 800 Robots Destroyed (61) 305 Value Destroyed (1339) 1339 Prototype IDs (4) 80 Alien Tech Used (0) 0 Bonus (296) 296 TOTAL SCORE: 3820 Bonus ------- High Alert Combat Kills 101 Follower Combat Kills 325 Friendly Fire -130 Cogmind --------- Core Integrity 0/550 Matter 290/300 Energy 7/100 System Corruption 0% Temperature Cool (69) Movement Core (800) Ox15 Location -8/Materials Parts ------- > --- POWER (1) -------- (None) > --- PROPULSION (3) --- (None) > --- UTILITY (4) ------ High-capacity Storage Unit Signal Interpreter > --- WEAPON (3) ------- Heavy Particle Cannon > --- INVENTORY (20) --- Aluminum Leg Aluminum Leg Improved Aluminum Leg Hover Unit Heat Sink Heat Sink High-capacity Storage Unit Compact Battery (200) Trap Scanner Machine Analyzer Recoil Stabilizer Light Armor Plating Medium Reactive Plating Medium Reactive Plating Medium Reactive Plating Hacking Suite Pulse Rifle Advanced Beam Cannon Peak State ------------ > --- POWER ------------ Improved Ion Engine > --- PROPULSION ------- Hover Unit Hover Unit Hover Unit > --- UTILITY ---------- Improved Cooling System High-capacity Storage Unit Signal Interpreter Medium Reactive Plating > --- WEAPON ----------- Advanced Beam Cannon Advanced Beam Cannon Advanced Beam Cannon > --- INVENTORY -------- Aluminum Leg Aluminum Leg Improved Aluminum Leg Hover Unit Heat Sink Heat Sink High-capacity Storage Unit Compact Battery Medium Matter Pod High-capacity Matter Pod Trap Scanner Machine Analyzer Recoil Stabilizer Light Armor Plating Medium Reactive Plating Hacking Suite Pulse Rifle EM Pulse Cannon Advanced Beam Cannon Heavy Particle Cannon [Rating: 28] Favorites ----------- Power Improved Ion Engine Engine Improved Ion Engine Propulsion Light Treads Treads Light Treads Leg Aluminum Leg Wheel Wheel Hover Unit Hover Unit Flight Unit Cesium-ion Thruster Utility High-capacity Storage Unit Device Sensor Array Storage High-capacity Storage Unit Processor Signal Interpreter Protection Medium Reactive Plating Weapon Advanced Beam Cannon Energy Gun Medium Laser Energy Cannon Advanced Beam Cannon Ballistic Gun Assault Rifle Ballistic Cannon Bore Cannon Launcher Grenade Launcher Build | -11 -10 -10 -9 -8 ------- Run | Yrd Mat Min Mat Mat Slots Evolved 4 | . . . 2 2 Power . | . . . . . Propulsion 1 | . . . 1 . Utility 2 | . . . 1 1 Weapon 1 | . . . . 1 Parts Attached 45 | 6 5 2 6 26 Power 4 | 1 1 . 1 1 Engine 4 | 1 1 . 1 1 Core . | . . . . . Reactor . | . . . . . Propulsion 17 | 2 2 . 1 12 Treads 5 | . 2 . 1 2 Leg 4 | . . . . 4 Wheel 2 | 2 . . . . Hover 3 | . . . . 3 Flight 3 | . . . . 3 Utility 9 | 1 . 1 4 3 Device 2 | . . . 1 1 Storage 5 | 1 . 1 3 . Processor 1 | . . . . 1 Hackware . | . . . . . Protection 1 | . . . . 1 Artifact . | . . . . . Weapon 15 | 2 2 1 . 10 Energy Gun 2 | 2 . . . . Energy Cannon 6 | . . . . 6 Ballistic Gun 2 | . 1 . . 1 Ballistic Cannon 3 | . . 1 . 2 Launcher 2 | . 1 . . 1 Special Weapon . | . . . . . Impact Weapon . | . . . . . Slashing Weapon . | . . . . . Piercing Weapon . | . . . . . Special Melee Weapon . | . . . . . Unidentified Prototypes . | . . . . . Parts Lost 22 | . 3 . 1 18 Power 4 | . 1 . 1 2 Propulsion 7 | . 1 . . 6 Utility 3 | . . . . 3 Weapon 8 | . 1 . . 7 Highest Loss Streak 8 | . 2 . 1 8 To Critical Strikes . | . . . . . Average Slot Usage (%) 91 | . 76 97 86 94 Engine 10 | . 10 14 10 8 Treads 13 | . 7 28 23 4 Leg 4 | . . . . 9 Wheel 1 | . 18 . . . Hover 5 | . . . . 10 Device 8 | . . . 6 13 Storage 17 | . 14 26 22 12 Processor 4 | . . . . 9 Energy Gun 1 | . 19 . . . Energy Cannon 9 | . . . . 19 Ballistic Gun 6 | . 5 14 11 1 Ballistic Cannon 6 | . . 13 11 3 Naked Turns . | . . . . . Heaviest Build 81 | 12 12 23 63 81 Greatest Support 60 | 20 40 40 60 60 Greatest Overweight (x) 19 | 1 1 . 1 19 Average Overweight (x) . | . . . . 2 Largest Inventory Capacity 20 | 8 8 8 20 20 Average Capacity 16 | 7 8 8 18 20 Most Carried 20 | 8 8 8 20 20 Average Carried 14 | 5 6 7 13 18 Final Capacity 20 | 8 8 8 20 20 Final Carried 20 | 6 7 8 20 18 Class Distribution -------------------- 58% | Mutant 27% | Scavenger-Skirmisher 5% | Scavenger-Mutant 5% | Skirmisher Dominant Class ---------------- Mutant | -10/Materials Mutant | -10/Mines Mutant | -9/Materials Scavenger-Skirmisher | -8/Materials Resources | -11 -10 -10 -9 -8 ----------- Run | Yrd Mat Min Mat Mat Matter Collected 1767 | 243 55 152 708 609 Remotely . | . . . . . Salvage Created 1686 | . 237 96 465 888 Parts 130 | . 18 11 31 70 Haulers Intercepted . | . . . . . Recyclers Shooed 5 | . 2 . 1 2 Parts Field Recycled . | . . . . . Retrieved Matter . | . . . . . Parts Self-Destructed . | . . . . . Prevented . | . . . . . Kills | -11 -10 -10 -9 -8 ------- Run | Yrd Mat Min Mat Mat Combat Hostiles Destroyed 38 | . 5 2 10 21 Guns 12 | . 5 1 5 1 Cannons 22 | . . 1 5 16 AOE 2 | . . . . 2 Classes Destroyed 12 | . 5 1 4 2 Worker 4 | . . . 1 3 Builder 8 | . . 2 4 2 Tunneler 1 | . . . 1 . Recycler 2 | . 1 . . 1 Mechanic 1 | . . . 1 . Operator 2 | . 1 . 1 . Watcher 4 | . 1 . . 3 Swarmer 17 | . 3 . 4 10 Grunt 14 | . 2 2 6 4 Duelist 1 | . . . . 1 Sentry 3 | . . . 1 2 Specialist 4 | . . . . 4 Best Kill Streak 14 | . 4 3 14 6 Combat Bots Only 7 | . 3 2 7 3 Max Kills in Single Turn 2 | . 2 1 2 2 Gunslinging 1 | . 1 . . . Exploded 2 | . . . . 2 Melee . | . . . . . Uniques/NPCs Destroyed . | . . . . . Combat | -11 -10 -10 -9 -8 -------- Run | Yrd Mat Min Mat Mat Hostile Shots Fired 350 | . 41 8 73 228 Missed 92 | . 8 4 24 56 Damage Taken 3390 | . 325 46 512 2507 Core 705 | . 74 21 59 551 Absorbed by Shields . | . . . . . Regen/Repaired (Parts) 118 | . . . 34 84 Core Remaining (%) 82 | 100 . 62 85 . Volleys Fired 161 | . 29 12 43 77 Largest 3 | . 2 2 2 3 Hottest 204 | . 90 77 77 204 Shots Fired 350 | . 58 24 86 182 Gun 119 | . 57 12 43 7 Cannon 229 | . . 12 43 174 Launcher 2 | . 1 . . 1 Special . | . . . . . Kinetic 165 | . 7 24 86 48 Thermal 161 | . 28 . . 133 Explosive 2 | . 1 . . 1 Electromagnetic 22 | . 22 . . . Robot Hit Streak 8 | . 4 8 3 5 Robot Miss Streak 8 | . 2 3 8 7 Penetration Max 1 | . . 1 1 . Secondary Targets 1 | . 1 . . . Max Gunslinging Chain 1 | . 1 . . . Shots Hit Robots 145 | . 27 11 32 75 Core Hits 80 | . 16 5 21 38 Critical Kills 13 | . . 3 7 3 Critical Parts Destroyed 11 | . . 4 7 . Critical Strikes 24 | . . 7 14 3 Meltdown 1 | . . . . 1 Destroy 23 | . . 7 14 2 Melee Attacks . | . . . . . Impact . | . . . . . Slashing . | . . . . . Piercing . | . . . . . Sneak Attacks . | . . . . . Combat Hostiles . | . . . . . Follow-up Attacks . | . . . . . Damage Inflicted 3203 | . 378 232 760 1833 Guns 789 | . 378 52 299 60 Cannons 2323 | . . 180 461 1682 Explosions 91 | . . . . 91 Melee . | . . . . . Ramming . | . . . . . Kinetic 1411 | . 40 232 760 379 Thermal 1515 | . 152 . . 1363 Explosive 91 | . . . . 91 Electromagnetic 186 | . 186 . . . Impact . | . . . . . Slashing . | . . . . . Piercing . | . . . . . Highest Corruption . | . . . . . Average Corruption . | . . . . . Corruption Purged . | . . . . . Corruption Blocked . | . . . . . Overload Shots . | . . . . . Overflow Damage 30 | . . . 1 29 Projectiles 30 | . . . 1 29 Explosions . | . . . . . Melee . | . . . . . Knockbacks 13 | . . 1 6 6 Impact . | . . . . . Kinetic 10 | . . 1 4 5 Secondary 3 | . . . 2 1 Self-Inflicted Damage . | . . . . . Shots . | . . . . . Rammed . | . . . . . Targets Rammed . | . . . . . Kicked . | . . . . . Crushed . | . . . . . Highest Temperature 470 | . 310 93 208 470 Average Temperature 121 | . 119 38 52 162 Received Heat Transfer 732 | . 96 27 168 441 Effects 16 | . 2 . . 14 Shutdowns 3 | . . . . 3 Energy Bleed 4 | . . . . 4 Interference 5 | . 2 . . 3 Matter Decay 2 | . . . . 2 Short Circuit 1 | . . . . 1 Damage (minor) 1 | . . . . 1 Siege Activations . | . . . . . Robots Corrupted . | . . . . . Combat Hostiles . | . . . . . Parts Fried 1 | . . . . 1 Impact Corruptions 1 | . . . . 1 Robots Melted 1 | . . . . 1 Combat Hostiles 1 | . . . . 1 Parts Melted 6 | . 1 . . 5 Heat Transferred 2886 | . 444 . . 2442 Parts Sabotaged . | . . . . . Parts Stolen . | . . . . . Parts Stripped . | . . . . . Power Chain Reactions . | . . . . . Alert | -11 -10 -10 -9 -8 ------- Run | Yrd Mat Min Mat Mat Peak Influence 572 | . 222 153 572 461 Initial 194 | . . 86 . 194 Average 196 | . 141 67 188 261 Maximum Alert Level 2 | . 1 . 2 2 Low Security (%) 58 | 100 60 100 65 38 Level 1 33 | . 39 . 11 58 Level 2 7 | . . . 23 3 Level 3 . | . . . . . Level 4 . | . . . . . Level 5 . | . . . . . High Security . | . . . . . Max Security . | . . . . . Squads Dispatched 7 | . . . 5 2 Investigation 1 | . . . 1 . Extermination . | . . . . . Reinforcement 5 | . . . 3 2 Assault 1 | . . . 1 . Garrison . | . . . . . Intercept . | . . . . . Searches Triggered . | . . . . . Construction Impeded 1 | . . . 1 . Haulers Reinforced . | . . . . . Active Scanning Responses . | . . . . . Cargo Convoy Interrupts . | . . . . . Stealth | -11 -10 -10 -9 -8 --------- Run | Yrd Mat Min Mat Mat Distress Signals 5 | . . . 1 4 Communications Jammed . | . . . . . Distress Signals . | . . . . . Times Spotted 76 | . 8 2 34 32 Peak Tracking Total 7 | . 3 1 7 7 Tactical Retreats 5 | . 2 . 1 2 Traps | -11 -10 -10 -9 -8 ------- Run | Yrd Mat Min Mat Mat Traps Triggered . | . . . . . Indirectly . | . . . . . Trap Hack Attempts . | . . . . . Triggered . | . . . . . Disarmed . | . . . . . Reprogrammed . | . . . . . Reused . | . . . . . Traps Extracted . | . . . . . Installed . | . . . . . Triggered . | . . . . . Most Traps Carried 2 | . . 2 2 2 Machines | -11 -10 -10 -9 -8 ---------- Run | Yrd Mat Min Mat Mat Machines Disabled 4 | . 1 . 1 2 Max in Single Turn 1 | . 1 . 1 1 Machines Repaired . | . . . . . Machines Dismantled . | . . . . . Machines Sabotaged . | . . . . . Overloaded Fab Kills . | . . . . . Hacking | -11 -10 -10 -9 -8 --------- Run | Yrd Mat Min Mat Mat Machines Accessed 8 | . 1 . 4 3 Terminals 5 | . 1 . 2 2 Fabricators . | . . . . . Repair Stations 2 | . . . 1 1 Recycling Units 1 | . . . 1 . Scanalyzers . | . . . . . Garrison Access . | . . . . . Total Hacks 28 | . 1 . 17 10 Successful 16 | . . . 11 5 Failed 12 | . 1 . 6 5 Catastrophic 2 | . 1 . . 1 Database Lockouts . | . . . . . Manual 3 | . 1 . 2 . Terminals 18 | . 1 . 10 7 Fabricators . | . . . . . Repair Stations 7 | . . . 4 3 Recycling Units 3 | . . . 3 . Scanalyzers . | . . . . . Garrison Access . | . . . . . Terminal Hacks 10 | . . . 7 3 Record 3 | . . . 3 . Robot Analysis 1 | . . . . 1 Prototype ID Bank 2 | . . . 2 . Branch Access Points 1 | . . . . 1 Emergency Access Points 1 | . . . 1 . Investigation Status 1 | . . . 1 . Zone Layout 1 | . . . . 1 Fabricator Hacks . | . . . . . Repair Station Hacks 4 | . . . 2 2 Scan Component 2 | . . . 1 1 Repair 2 | . . . 1 1 Recycling Unit Hacks 2 | . . . 2 . Retrieve Matter 1 | . . . 1 . Retrieve Components 1 | . . . 1 . Scanalyzer . | . . . . . Garrison Access Hacks . | . . . . . Unauthorized Hacks . | . . . . . Terminals . | . . . . . Fabricators . | . . . . . Repair Stations . | . . . . . Recycling Units . | . . . . . Scanalyzers . | . . . . . Garrison Access . | . . . . . Data Cores Recovered 2 | . 1 . 1 . Used . | . . . . . Hacking Detections 8 | . 1 . 4 3 Full Trace Events 1 | . . . . 1 Feedback Events . | . . . . . Feedback Blocked . | . . . . . Robot Schematics Acquired . | . . . . . Robots Built . | . . . . . Authchips . | . . . . . Time . | . . . . . Total Robot Build Rating . | . . . . . Part Schematics Acquired . | . . . . . Parts Built . | . . . . . Authchips . | . . . . . Time . | . . . . . Total Part Build Rating . | . . . . . Parts Repaired 2 | . . . 1 1 Time 76 | . . . 26 50 Parts Recycled . | . . . . . Recycled Matter . | . . . . . Retrieved Matter . | . . . . . Retrieved Components 2 | . . . 2 . Parts Scanalyzed . | . . . . . Part Schematics Acquired . | . . . . . Parts Damaged . | . . . . . Bothacking | -11 -10 -10 -9 -8 ------------ Run | Yrd Mat Min Mat Mat Used RIF Installer . | . . . . . Robots Hacked . | . . . . . Non-combat . | . . . . . Combat . | . . . . . Robot Hacks Applied . | . . . . . Relay Couplers Released . | . . . . . Fabnet Peak Effective % . | . . . . . Robots Rewired . | . . . . . Allies Hacked . | . . . . . Hacks Repelled . | . . . . . Allies | -11 -10 -10 -9 -8 -------- Run | Yrd Mat Min Mat Mat Total Allies 3 | . . 3 . . Largest Group 3 | . . 3 3 . Highest-Rated Group 40 | . . 40 40 . Highest-Rated Ally 16 | . . 16 16 . Total Orders . | . . . . . Ally Attacks 63 | . . . 63 . Total Damage 585 | . . . 585 . Kills 19 | . . . 19 . Allies Corrupted . | . . . . . Allies Melted . | . . . . . Intel | -11 -10 -10 -9 -8 ------- Run | Yrd Mat Min Mat Mat Robot Analysis Total 1 | . . . . 1 Derelict Logs Recovered 1 | . . 1 . . Drone Launches . | . . . . . Drone Recoveries . | . . . . . Exploration | -11 -10 -10 -9 -8 ------------- Run | Yrd Mat Min Mat Mat Turns Passed 4663 | 87 395 726 1254 2201 Spaces Moved 2098 | 83 307 428 482 798 Core 41 | 33 . . . 8 Treads 1063 | . 33 428 482 120 Legs 327 | . . . . 327 Wheels 324 | 50 274 . . . Hover 343 | . . . . 343 Flight . | . . . . . Fastest Speed 50 | 50 80 160 160 172 Average Speed 185 | 83 89 160 220 225 Slowest Speed 1000 | 100 160 160 240 1000 Overloaded Moves . | . . . . . Propulsion Burnouts . | . . . . . Robots Hopped . | . . . . . Cave-ins Triggered . | . . . . . Exploration Rate (%) 38 | 5 34 69 41 41 Regions Visited 4 Branch Regions 1 Pre-discovered Areas . | . . . . . Known Exits Taken 1 | . . 1 . . Unknown Exits Taken 3 | 1 1 . 1 . Scrap Searched 2 | . . 2 . . Spaces Dug 2 | . . 2 . . Terrain Destroyed 76 | . 10 10 20 36 Melee . | . . . . . Projectile 53 | . . 10 20 23 AOE 23 | . 10 . . 13 Terrain Rammed . | . . . . . Walls Destroyed . | . . . . . Machines Disabled . | . . . . . Actions | -11 -10 -10 -9 -8 --------- Run | Yrd Mat Min Mat Mat Total 2571 | 100 373 446 591 1061 Wait 157 | . 21 . 26 110 Move 2094 | 82 306 427 481 798 Hop . | . . . . . Pick Up 77 | 12 7 4 25 29 Fast Attach 1 | . . . . 1 Attach 43 | 6 5 2 5 25 Detach 6 | . 1 . 1 4 Swap 1 | . . . 1 . Drop 31 | . 4 1 9 17 Fire 161 | . 29 12 43 77 Melee . | . . . . . Ram . | . . . . . Kick . | . . . . . Crush . | . . . . . Escape Stasis . | . . . . . Rewire . | . . . . . Trap . | . . . . . Miscellaneous . | . . . . . Route ------- -11/Scrapyard -10/Materials (discovered 2 exits: *Mat / [*Min]) -10/Mines -9/Materials (discovered 3 exits: *Mat x2 / [*Min]) -8/Materials (discovered 2 exits: [*Fac x2]) History --------- Turn | Location | Event 38 | -11/Scrapyard | Discovered new exit (range 13) 88 | -11/Scrapyard | Entered Materials 251 | -10/Materials | Discovered new exit (range 13) 301 | -10/Materials | Build established: Mutant 447 | -10/Materials | Discovered new exit (range 14) 483 | -10/Materials | Entered Mines 513 | -10/Mines | A weapon hastily lodged in a ceiling crevice suddenly fell to the ground 590 | -10/Mines | Found a hidden stash of uninstalled traps 912 | -10/Mines | Assisted by bots powering up and referring to "LRC-V3" 1166 | -10/Mines | Identified exit to Materials 1209 | -10/Mines | Entered Materials 1209 | -9/Materials | Accompanied by 3 allies 1209 | -9/Materials | Evolved 2 slots: Propulsion x1, Utility x1 1604 | -9/Materials | Repaired Hcp. Matter Pod 1765 | -9/Materials | Discovered new exit (range 10) 1945 | -9/Materials | Discovered new exit (range 14) 2238 | -9/Materials | Destroyed 7 combat bots 2339 | -9/Materials | Discovered new exit (range 16) 2409 | -9/Materials | First assault squad dispatched 2463 | -9/Materials | Entered another Materials area 2463 | -8/Materials | Evolved 2 slots: Utility x1, Weapon x1 2590 | -8/Materials | Repaired Bore Cannon 2877 | -8/Materials | Lost 6 parts (1p2n3w) 3255 | -8/Materials | Core integrity fell below 50% 3298 | -8/Materials | Discovered new exit (range 16) 3567 | -8/Materials | Build established: Scavenger-Skirmisher 4643 | -8/Materials | Discovered new exit (range 9) 4654 | -8/Materials | Core integrity fell below 20% 4664 | -8/Materials | Destroyed by G-47 Trooper with Particle Gun Last Messages --------------- Unit. 04601_ K-01 Serf collects debris. 04602_ R-06 Scavenger collects Imp. Signal Interpreter. 04603_ Overheating: Matter decay (-30). 04607_ K-01 Serf collects debris. 04609_ Imp. Ion Engine destroyed. 04612_ R-06 Scavenger collects Med. Matter Pod. 04612_ R-06 Scavenger collects Imp. Hover Unit. 04614_ Adv. Beam Cannon severed. 04616_ R-06 Scavenger collects Imp. Sensor Array. 04617_ Med. Reactive Plating destroyed. 04629_ R-06 Scavenger collects Flight Unit. 04630_ Imp. Cooling System destroyed. 04638_ Adv. Beam Cannon destroyed. 04643_ Hover Unit destroyed. 04643_ EXIT=FOUND 04648_ EM Pulse Cannon severed. 04652_ Hover Unit destroyed. Map ----- +----------------------------------------------------+ | ??????????????????????????????????????????? | | ??????????????????????????????????????????? | | ??????????????????????????????????????????? | | ??????????????????????????????????????????? | | ??????????????????????????????????????????? | | ??????????????????????????????????????????? | | ??????????????????????????????????????????? | | ??????????????????????????????????????????? | | ??????????????????????????????????????????? | | ????????????? ??????????????????????????? | | #?# # #?# ??????????????????? | | #?# # #?# ??????????????????? | | #?# # #?# ??????????????????? | | ############# #?# ??????????????????? | | ## ## #?# ??????????????????? | | ## """"""" ## #?# ?? ???????????????? | | ## """"""" ## #####+### ???##??????????? | | ## """"""" ## ??? ??????????? | | ## """"""" ## = ????